Workbook

Sheet Planilha1
B2: A | H2: B | N2: C | T2: D | Z2: E | AF2: BRAKE | AM2: A | AN2: B | AO2: C | AP2: D | AQ2: E
B3: factory | C3: LEFT | D3: RIGHT | E3: left | F3: right | G3: symet | H3: factory | I3: LEFT | J3: RIGHT | K3: left | L3: right | M3: symet. | N3: factory | O3: LEFT | P3: RIGHT | Q3: left | R3: dir. | S3: symet | T3: factory | U3: LEFT | V3: RIGHT | W3: left. | X3: right | Y3: symet | Z3: factory | AA3: LEFT | AB3: RIGHT | AC3: left | AD3: dir. | AE3: symet | AF3: factory | AG3: LEFT | AH3: RIGHT | AI3: left | AJ3: dir. | AK3: symet
A4: 1 | B4: 8693.4 | E4: =C4-B4 -> -8693.4 | F4: =D4-B4 -> -8693.4 | G4: =C4-D4 -> 0 | H4: 8595.4 | K4: =I4-H4 -> -8595.4 | L4: =J4-H4 -> -8595.4 | M4: =I4-J4 -> 0 | N4: 8618.5 | Q4: =O4-N4 -> -8618.5 | R4: =P4-N4 -> -8618.5 | S4: =O4-P4 -> 0 | T4: 8800.3 | W4: =U4-T4 -> -8800.3 | X4: =V4-T4 -> -8800.3 | Y4: =U4-V4 -> 0 | Z4: 8919.7 | AA4: 8919.7 | AC4: =AA4-Z4 -> 0 | AD4: =AB4-Z4 -> -8919.7 | AE4: =AA4-AB4 -> 8919.7 | AF4: 9411.95 | AI4: =AG4-AF4 -> -9411.95 | AJ4: =AH4-AF4 -> -9411.95 | AK4: =AG4-AH4 -> 0 | AM4: 8710.3 | AN4: 8596.2 | AO4: 8617.7 | AP4: 8795 | AQ4: 8915.5
A5: 2 | B5: 8611.7 | E5: =C5-B5 -> -8611.7 | F5: =D5-B5 -> -8611.7 | G5: =C5-D5 -> 0 | H5: 8517.1 | K5: =I5-H5 -> -8517.1 | L5: =J5-H5 -> -8517.1 | M5: =I5-J5 -> 0 | N5: 8540.6 | Q5: =O5-N5 -> -8540.6 | R5: =P5-N5 -> -8540.6 | S5: =O5-P5 -> 0 | T5: 8711.9 | W5: =U5-T5 -> -8711.9 | X5: =V5-T5 -> -8711.9 | Y5: =U5-V5 -> 0 | Z5: 8792.3 | AA5: 8792.3 | AC5: =AA5-Z5 -> 0 | AD5: =AB5-Z5 -> -8792.3 | AE5: =AA5-AB5 -> 8792.3 | AF5: 9109.05 | AI5: =AG5-AF5 -> -9109.05 | AJ5: =AH5-AF5 -> -9109.05 | AK5: =AG5-AH5 -> 0 | AM5: 8630.95 | AN5: 8516.1 | AO5: 8541.75 | AP5: 8709.35 | AQ5: 8787.6
A6: 3 | B6: 8592.2 | E6: -8592.2 | F6: -8592.2 | G6: 0 | H6: 8495.8 | K6: -8495.8 | L6: -8495.8 | M6: 0 | N6: 8517.6 | Q6: -8517.6 | R6: -8517.6 | S6: 0 | T6: 8672.2 | W6: -8672.2 | X6: -8672.2 | Y6: 0 | Z6: 8755.4 | AA6: 8755.4 | AC6: 0 | AD6: -8755.4 | AE6: 8755.4 | AF6: 8935.9 | AI6: -8935.9 | AJ6: -8935.9 | AK6: 0 | AM6: 8609.3 | AN6: 8492.05 | AO6: 8518.55 | AP6: 8664.95 | AQ6: 8751.9
A7: 4 | B7: 8573.5 | E7: -8573.5 | F7: -8573.5 | G7: 0 | H7: 8476.2 | K7: -8476.2 | L7: -8476.2 | M7: 0 | N7: 8504.8 | Q7: -8504.8 | R7: -8504.8 | S7: 0 | T7: 8631.7 | W7: -8631.7 | X7: -8631.7 | Y7: 0 | Z7: 8774.7 | AA7: 8774.7 | AC7: 0 | AD7: -8774.7 | AE7: 8774.7 | AF7: 8971.05 | AI7: -8971.05 | AJ7: -8971.05 | AK7: 0 | AM7: 8590.3 | AN7: 8475.6 | AO7: 8507.3 | AP7: 8628.15 | AQ7: 8769.25
A8: 5 | B8: 8574.6 | E8: -8574.6 | F8: -8574.6 | G8: 0 | H8: 8476 | K8: -8476 | L8: -8476 | M8: 0 | N8: 8509.1 | Q8: -8509.1 | R8: -8509.1 | S8: 0 | T8: 8633.7 | W8: -8633.7 | X8: -8633.7 | Y8: 0 | Z8: 8759.1 | AA8: 8759.1 | AC8: 0 | AD8: -8759.1 | AE8: 8759.1 | AF8: 8773.55 | AI8: -8773.55 | AJ8: -8773.55 | AK8: 0 | AM8: 8591.5 | AN8: 8475.1 | AO8: 8511.85 | AP8: 8626.95 | AQ8: 8756.95
A9: 6 | B9: 8620.9 | E9: -8620.9 | F9: -8620.9 | G9: 0 | H9: 8527 | K9: -8527 | L9: -8527 | M9: 0 | N9: 8562.9 | Q9: -8562.9 | R9: -8562.9 | S9: 0 | T9: 8663.5 | W9: -8663.5 | X9: -8663.5 | Y9: 0 | Z9: 8720.2 | AA9: 8720.2 | AC9: 0 | AD9: -8720.2 | AE9: 8720.2 | AF9: 8580.8 | AI9: -8580.8 | AJ9: -8580.8 | AK9: 0 | AM9: 8637.65 | AN9: 8524.65 | AO9: 8565.3 | AP9: 8658.9 | AQ9: 8721.2
A10: 7 | B10: 8542.7 | E10: -8542.7 | F10: -8542.7 | G10: 0 | H10: 8461.8 | K10: -8461.8 | L10: -8461.8 | M10: 0 | N10: 8507.6 | Q10: -8507.6 | R10: -8507.6 | S10: 0 | T10: 8636.8 | W10: -8636.8 | X10: -8636.8 | Y10: 0 | Z10: 8674.6 | AA10: 8674.6 | AC10: 0 | AD10: -8674.6 | AE10: 8674.6 | AF10: 8520.95 | AI10: -8520.95 | AJ10: -8520.95 | AK10: 0 | AM10: 8560.9 | AN10: 8459.8 | AO10: 8508.25 | AP10: 8634.65 | AQ10: 8666.9
A11: 8 | B11: 8499.2 | E11: -8499.2 | F11: -8499.2 | G11: 0 | H11: 8427 | K11: -8427 | L11: -8427 | M11: 0 | N11: 8472.5 | Q11: -8472.5 | R11: -8472.5 | S11: 0 | T11: 8591.4 | W11: -8591.4 | X11: -8591.4 | Y11: 0 | Z11: 8670.5 | AA11: 8670.5 | AC11: 0 | AD11: -8670.5 | AE11: 8670.5 | AF11: 8583.15 | AI11: =AG11-AF11 -> -8583.15 | AJ11: =AH11-AF11 -> -8583.15 | AK11: =AG11-AH11 -> 0 | AM11: 8517 | AN11: 8424.35 | AO11: 8470.25 | AP11: 8591.35 | AQ11: 8666.3
A12: 9 | B12: 8453.7 | E12: -8453.7 | F12: -8453.7 | G12: 0 | H12: 8568.6 | K12: -8568.6 | L12: -8568.6 | M12: 0 | N12: 8445.2 | Q12: -8445.2 | R12: -8445.2 | S12: 0 | T12: 8561 | W12: -8561 | X12: -8561 | Y12: 0 | AF12: 8371.1 | AI12: -8371.1 | AJ12: -8371.1 | AK12: 0 | AM12: 8470.05 | AN12: 8387.45 | AO12: 8441.75 | AP12: 8557.6
A13: 10 | B13: 8455.9 | E13: -8455.9 | F13: -8455.9 | G13: 0 | H13: 8395.8 | K13: -8395.8 | L13: -8395.8 | M13: 0 | N13: 8455.2 | Q13: -8455.2 | R13: -8455.2 | S13: 0 | T13: 8570.4 | W13: -8570.4 | X13: -8570.4 | Y13: 0 | AF13: 8271.15 | AI13: -8271.15 | AJ13: -8271.15 | AK13: 0 | AM13: 8470.95 | AN13: 8393.8 | AO13: 8451.8 | AP13: 8564.1
A14: 11 | B14: 8300 | E14: -8300 | F14: -8300 | G14: 0 | H14: 8252.3 | K14: -8252.3 | L14: -8252.3 | M14: 0 | N14: 8285.6 | Q14: -8285.6 | R14: -8285.6 | S14: 0 | T14: 8422.6 | W14: -8422.6 | X14: -8422.6 | Y14: 0 | AF14: 8165.4 | AI14: -8165.4 | AJ14: -8165.4 | AK14: 0 | AM14: 8316.85 | AN14: 8255.35 | AO14: 8289 | AP14: 8418.95
A15: 12 | B15: 8212.5 | E15: -8212.5 | F15: -8212.5 | G15: 0 | H15: 8176 | K15: -8176 | L15: -8176 | M15: 0 | N15: 8211.4 | Q15: -8211.4 | R15: -8211.4 | S15: 0 | T15: 8288.5 | W15: -8288.5 | X15: -8288.5 | Y15: 0 | AF15: 8096.25 | AI15: -8096.25 | AJ15: -8096.25 | AK15: 0 | AM15: 8227.25 | AN15: 8176.7 | AO15: 8214.15 | AP15: 8282.95
A16: 13 | B16: 8160.6 | E16: -8160.6 | F16: -8160.6 | G16: 0 | H16: 8127.7 | K16: -8127.7 | L16: -8127.7 | M16: 0 | N16: 8164.1 | Q16: -8164.1 | R16: -8164.1 | S16: 0 | T16: 8166.5 | W16: -8166.5 | X16: -8166.5 | Y16: 0 | AF16: 8086.3 | AI16: -8086.3 | AJ16: -8086.3 | AK16: 0 | AM16: 8175.55 | AN16: 8129 | AO16: 8165.7 | AP16: 8161.95
A17: 14 | B17: 8044.4 | E17: -8044.4 | F17: -8044.4 | G17: 0 | H17: 8009.8 | K17: -8009.8 | L17: -8009.8 | M17: 0 | N17: 8059.2 | Q17: -8059.2 | R17: -8059.2 | S17: 0 | T17: 8062.8 | W17: -8062.8 | X17: -8062.8 | Y17: 0 | AM17: 8057.9 | AN17: 8009.9 | AO17: 8060.25 | AP17: 8056.9
A18: 15 | B18: 7993 | E18: -7993 | F18: -7993 | G18: 0 | H18: 7944.7 | K18: -7944.7 | L18: -7944.7 | M18: 0 | N18: 7989.1 | Q18: -7989.1 | R18: -7989.1 | S18: 0 | AM18: 7996.15 | AN18: 7942.3 | AO18: 7990.3
A19: 16 | B19: 7969.5 | E19: -7969.5 | F19: -7969.5 | G19: 0 | H19: 7899.4 | K19: -7899.4 | L19: -7899.4 | M19: 0 | N19: 7950.4 | Q19: -7950.4 | R19: -7950.4 | S19: 0 | AM19: 7973.1 | AN19: 7900.15 | AO19: 7945.95
A20: 17 | B20: 7757.8 | E20: -7757.8 | F20: -7757.8 | G20: 0 | H20: 7742.4 | K20: -7742.4 | L20: -7742.4 | M20: 0 | N20: 7836.8 | Q20: -7836.8 | R20: -7836.8 | S20: 0
A21: 18 | B21: 7653.9 | E21: -7653.9 | F21: -7653.9 | G21: 0 | H21: 7701.6 | K21: -7701.6 | L21: -7701.6 | M21: 0 | N21: 7797.9 | Q21: -7797.9 | R21: -7797.9 | S21: 0
F108: 235
